bitfinex/quotes_SOLUSD_20250306
["timestamp","ask_amount","ask_price","bid_price","bid_amount"]
[1741284885297,0.0001,144.24,144.23,81.07516157]
[1741284885780,0.0001,144.24,144.23,393.07516157]
[1741284887275,0.0001,144.24,144.23,400.00846157]
[1741284887488,0.0001,144.24,144.23,393.07516157]
[1741284888077,0.0001,144.24,144.23,81.07516157]
[1741284888465,0.0001,144.24,144.23,80.933]
[1741284888663,0.0001,144.24,144.23,81.07516157]
[1741284890186,0.0001,144.24,144.23,99.30376353]
[1741284890393,0.0001,144.24,144.23,88.00846157]
[1741284890690,0.0001,144.24,144.23,81.07516157]
[1741284891093,0.0001,144.24,144.23,400.00846157]
[1741284891874,0.0001,144.24,144.23,393.07516157]
[1741284892678,0.0001,144.24,144.23,81.07516157]
[1741284896893,0.0001,144.24,144.23,0.14216157]
[1741284898001,0.0001,144.24,144.23,25.30406353]
[1741284899301,0.0001,144.24,144.23,337.30406353]
[1741284900299,0.0001,144.24,144.23,312.14216157]
[1741284901279,0.0001,144.24,144.23,319.07546157]
[1741284901476,0.0001,144.24,144.23,574.68671239]
[1741284901685,0.0001,144.24,144.23,581.80671239]
[1741284903100,0.03,144.27,144.26,20.14216157]
[1741284903306,0.0001,144.27,144.26,121.46418735]
[1741284903507,0.0001,144.27,144.26,139.69278931]
[1741284903804,0.0001,144.27,144.26,138.23773553]
[1741284903982,0.0001,144.27,144.26,137.95341239]
[1741284904381,0.0001,144.27,144.26,144.88531239]
[1741284904586,0.0001,144.27,144.26,145.16963553]
[1741284905308,0.0001,144.27,144.26,163.39823749]
[1741284906305,0.0001,144.27,144.26,457.16963553]
[1741284906484,0.0001,144.27,144.26,449.95341239]
[1741284906683,0.0001,144.27,144.26,439.12913357]
[1741284906890,0.0001,144.27,144.26,620.31823749]
[1741284907305,0.0001,144.27,144.26,594.87341239]
[1741284907983,0.0001,144.27,144.26,413.07516157]
[1741284908179,0.0001,144.27,144.26,431.72481043]
[1741284908393,0.0001,144.27,144.26,456.88531239]
[1741284909802,0.0001,144.27,144.26,613.19823749]
[1741284910620,0.0001,144.27,144.26,594.96963553]
[1741284911107,0.0001,144.27,144.26,613.19823749]
[1741284911290,0.0001,144.27,144.26,594.96963553]
[1741284911496,0.0001,144.27,144.26,613.19823749]
[1741284912400,0.0001,144.27,144.26,594.96963553]
[1741284912599,0.0001,144.27,144.26,602.06963553]
[1741284914813,0.0001,144.27,144.26,601.78531239]
[1741284915185,0.0001,144.27,144.26,620.29823749]
[1741284915589,0.0001,144.27,144.26,583.84103357]
[1741284915798,0.0001,144.27,144.26,620.29823749]
[1741284916316,4.7994,144.36,144.27,19.07613357]
[1741284916518,4.7994,144.36,144.32,0.14216157]
[1741284916813,4.7994,144.36,144.32,81.07516157]
[1741284917799,29.95510196,144.36,144.32,81.07516157]
[1741284918515,23.02800196,144.36,144.32,81.07516157]
[1741284919035,23.02800196,144.36,144.33,0.14216157]
[1741284919400,4.7994,144.36,144.33,0.14216157]
[1741284919705,0.03,144.37,144.33,319.07056157]
[1741284920008,0.03,144.37,144.33,337.29916353]
[1741284920605,0.03,144.37,144.33,399.34019452]
[1741284920807,0.03,144.37,144.33,87.34019452]
[1741284922011,0.03,144.37,144.33,69.11159256]
[1741284922321,0.03,144.37,144.33,80.41179452]
[1741284922825,0.03,144.37,144.33,87.34019452]
[1741284923008,0.03,144.37,144.33,80.41179452]
[1741284923722,0.03,144.37,144.34,312.0]
[1741284924427,18.22860196,144.36,144.34,312.0]
[1741284924601,18.22860196,144.36,144.34,0.14216157]
[1741284925595,18.22860196,144.35,144.33,62.04103099]
[1741284925797,18.22860196,144.34,144.33,62.04103099]
[1741284926294,25.15660196,144.34,144.33,62.04103099]
[1741284926605,6.928,144.34,144.28,62.04103099]
[1741284926802,25.15660196,144.34,144.28,80.26963295]
[1741284927003,25.15660196,144.34,144.29,0.14216157]
[1741284927724,18.22860196,144.33,144.29,312.14216157]
[1741284927915,6.0245,144.33,144.29,374.04103099]
[1741284928220,12.9532,144.33,144.29,62.04103099]
[1741284928403,31.18180196,144.33,144.3,0.14216157]
[1741284928829,12.9532,144.33,144.3,0.14216157]
[1741284929133,6.0245,144.33,144.3,0.14216157]
[1741284929345,23.3711,144.37,144.3,80.41179452]
[1741284929653,6.9271,144.36,144.31,18.22860196]
[1741284929800,6.9271,144.36,144.32,0.14216157]
[1741284930125,25.15570196,144.36,144.32,0.14216157]
[1741284930299,25.15570196,144.36,144.31,0.14216157]
[1741284930300,18.22860196,144.35,144.31,0.14216157]
[1741284930704,25.15570196,144.36,144.31,0.14216157]
[1741284931028,25.15570196,144.36,144.31,312.14216157]
[1741284932920,18.22860196,144.33,144.31,312.0]
[1741284933228,18.22860196,144.33,144.31,0.14216157]
[1741284933453,6.9271,144.36,144.31,0.14216157]
[1741284933650,6.9271,144.36,144.31,80.41179452]
[1741284934166,6.9271,144.36,144.31,62.18319256]
[1741284934371,0.03,144.37,144.35,18.37076353]
[1741284934530,0.03,144.37,144.36,45.85898229]
[1741284934730,0.03,144.39,144.38,39.07613357]
[1741284934961,0.03,144.39,144.38,257.14576652]
[1741284936150,0.03,144.39,144.38,569.14576652]
[1741284936346,0.03,144.39,144.38,557.13789452]
[1741284936554,0.03,144.39,144.38,550.21179452]
[1741284937146,0.03,144.39,144.38,412.41179452]
[1741284938764,0.03,144.39,144.38,419.33789452]
[1741284939755,0.03,144.39,144.38,576.07186652]
[1741284941361,0.03,144.42,144.41,20.14216157]
[1741284941559,0.03,144.42,144.41,283.9278166]
[1741284941743,0.03,144.46,144.45,20.14216157]
[1741284941941,0.03,144.46,144.45,238.21179452]
[1741284942138,0.03,144.46,144.45,257.14576652]
[1741284942339,0.03,144.46,144.45,264.06856652]
[1741284943135,0.03,144.46,144.45,265.63316652]
[1741284944538,0.03,144.46,144.45,577.63316652]
[1741284946358,0.03,144.46,144.45,556.99243295]
[1741284946561,0.03,144.46,144.45,575.64208181]
[1741284946859,0.0001,144.52,144.5,25.38533357]
[1741284947073,6.1931,144.64,144.56,0.14216157]
[1741284947253,6.1931,144.64,144.62,0.14216157]
[1741284947765,31.33550196,144.64,144.6,0.14216157]
[1741284947961,6.9146,144.62,144.6,0.14216157]
[1741284948449,6.9146,144.62,144.58,0.14216157]
[1741284948652,35.9149051,144.62,144.58,0.14216157]
[1741284948855,29.0003051,144.6,144.55,69.12103099]
[1741284949072,29.0003051,144.61,144.55,69.12103099]
[1741284949369,29.0003051,144.61,144.56,0.14216157]
[1741284950082,29.0003051,144.58,144.53,62.04103099]
[1741284950375,1.6273,144.57,144.53,62.04103099]
[1741284950541,1.6273,144.57,144.54,0.14216157]
[1741284951561,1.6273,144.57,144.53,62.04103099]
[1741284951868,1.6273,144.57,144.54,0.14216157]
[1741284952056,6.9175,144.56,144.54,0.14216157]
[1741284952880,6.9175,144.56,144.49,29.0003051]
[1741284952881,59.5316051,144.56,144.49,29.0003051]
[1741284953043,59.5316051,144.56,144.49,410.12133609]
[1741284953245,59.5316051,144.56,144.5,0.14216157]
[1741284953460,59.5316051,144.56,144.49,410.12133609]
[1741284953461,29.0003051,144.54,144.49,374.04103099]
[1741284953769,29.0003051,144.5,144.45,69.12103099]
[1741284954074,6.919,144.53,144.49,0.14216157]
[1741284954383,35.9183051,144.55,144.49,91.18349766]
[1741284954666,29.0003051,144.53,144.49,62.18319256]
[1741284954978,29.0003051,144.52,144.49,62.18319256]
[1741284955148,6.32,144.56,144.52,0.14216157]
[1741284955462,6.9161,144.59,144.55,0.14216157]
[1741284955854,6.9161,144.59,144.53,29.14246667]
[1741284956262,35.9164051,144.59,144.53,0.14216157]
[1741284956443,29.0003051,144.58,144.53,0.14216157]
[1741284956649,6.9161,144.59,144.53,312.14216157]
[1741284957074,35.9164051,144.59,144.53,312.14216157]
[1741284957285,29.0003051,144.58,144.53,312.14216157]
[1741284958465,29.0003051,144.56,144.5,118.1803051]
[1741284958664,29.0003051,144.56,144.51,0.14216157]
[1741284958975,29.0003051,144.56,144.51,82.24216157]
[1741284959154,29.0003051,144.56,144.5,36.0803051]
[1741284959484,29.0003051,144.51,144.47,82.1]
[1741284959774,29.0003051,144.5,144.47,82.1]
[1741284959947,29.0003051,144.51,144.47,82.1]
[1741284960349,29.0003051,144.5,144.48,0.14216157]
[1741284960752,29.0003051,144.49,144.44,82.133]
[1741284960966,6.9203,144.51,144.44,82.133]
[1741284960967,29.0003051,144.48,144.44,82.133]
[1741284961163,29.0003051,144.47,144.45,0.14216157]
[1741284961549,29.0003051,144.47,144.44,394.133]
[1741284961871,29.0003051,144.45,144.44,0.033]
[1741284962269,30.5044051,144.45,144.44,0.033]
[1741284962477,37.4272051,144.45,144.44,0.033]
[1741284963047,6.1069,144.44,144.38,82.1]
[1741284963252,6.1069,144.44,144.36,137.8]
[1741284963253,29.0003051,144.39,144.36,82.1]
[1741284963675,29.0003051,144.39,144.37,0.14216157]
[1741284963855,29.0003051,144.38,144.36,82.1]
[1741284964170,29.0003051,144.37,144.33,82.1]
[1741284964369,29.0003051,144.37,144.34,0.14216157]
[1741284964557,29.0003051,144.38,144.34,0.14216157]
[1741284964756,29.0003051,144.4,144.34,341.14246667]
[1741284964962,29.0003051,144.39,144.34,532.04216157]
[1741284965360,29.0003051,144.38,144.34,532.04216157]
[1741284965871,29.0003051,144.39,144.34,538.97016157]
[1741284966264,29.0003051,144.39,144.34,532.04216157]
[1741284966649,29.0003051,144.39,144.34,538.96996157]
[1741284966855,29.0003051,144.41,144.36,0.14216157]
[1741284967053,29.0003051,144.42,144.36,249.04246667]
[1741284967275,35.1072051,144.44,144.38,0.14216157]
[1741284967453,21.08966607,144.46,144.41,0.14216157]
[1741284967655,29.0003051,144.46,144.41,0.14216157]
[1741284967859,6.6656,144.48,144.4,219.9]
[1741284968175,29.0003051,144.47,144.43,0.14216157]
[1741284968879,6.6656,144.48,144.42,7.06636157]
[1741284969058,29.0003051,144.47,144.42,7.06636157]
[1741284969253,13.5869,144.48,144.42,0.14216157]
[1741284969457,29.0003051,144.45,144.41,0.14216157]
[1741284970056,29.0003051,144.45,144.41,312.14216157]
[1741284970466,35.9231051,144.45,144.41,312.14216157]
[1741284971175,29.0003051,144.43,144.41,312.14216157]
[1741284971378,29.0003051,144.42,144.41,0.14216157]
[1741284972058,29.0003051,144.42,144.4,82.1]
[1741284972059,29.0003051,144.42,144.37,89.18]
[1741284972257,29.0003051,144.41,144.38,0.14216157]
[1741284972685,35.9251051,144.41,144.38,0.14216157]
[1741284973059,29.0003051,144.4,144.34,248.9003051]
[1741284973275,29.0003051,144.38,144.34,219.9]
[1741284973479,29.0003051,144.38,144.35,0.14216157]
[1741284973784,29.0003051,144.38,144.34,219.9]
[1741284973961,29.0003051,144.38,144.35,0.14216157]
[1741284974163,29.0003051,144.38,144.34,82.1]
[1741284974358,29.0003051,144.38,144.35,312.0]
[1741284974563,25.57334886,144.43,144.36,0.14216157]
[1741284974962,29.0003051,144.4,144.36,0.14216157]
[1741284975969,29.0003051,144.39,144.36,0.14216157]
[1741284977584,43.90587843,144.43,144.36,0.14216157]
[1741284977585,29.0003051,144.41,144.36,7.06906157]
[1741284977781,29.0003051,144.44,144.39,0.14216157]
[1741284977982,35.9232051,144.45,144.39,29.14246667]
[1741284978297,29.0003051,144.44,144.39,0.14216157]
[1741284979308,29.0003051,144.43,144.39,0.14216157]
[1741284979483,29.0003051,144.42,144.39,0.14216157]
[1741284979679,29.0003051,144.41,144.39,0.14216157]
[1741284980488,29.0003051,144.4,144.39,0.14216157]
[1741284980699,29.0003051,144.4,144.37,0.14216157]
[1741284981011,24.2349,144.42,144.36,82.1]
[1741284981012,29.0003051,144.38,144.36,82.1]
[1741284981199,29.0003051,144.38,144.32,255.8291051]
[1741284981583,35.9269051,144.37,144.32,82.1]
[1741284981884,29.0003051,144.37,144.33,0.14216157]
[1741284982096,6.9262,144.38,144.33,0.14216157]
[1741284982298,35.9265051,144.38,144.33,0.14216157]
[1741284982683,35.9265051,144.38,144.32,82.1]
[1741284982684,29.0003051,144.35,144.32,82.1]
[1741284982883,29.0003051,144.35,144.33,0.14216157]
[1741284983287,29.0003051,144.36,144.33,0.14216157]
[1741284983486,29.0003051,144.37,144.33,0.14216157]
[1741284983697,29.0003051,144.36,144.33,0.14216157]
[1741284983899,29.0003051,144.36,144.33,312.14216157]
[1741284984606,29.0003051,144.38,144.33,319.07046157]
[1741284984795,29.0003051,144.38,144.33,7.07046157]
[1741284985295,18.64964886,144.41,144.35,0.14216157]
[1741284985296,29.0003051,144.41,144.35,0.14216157]
[1741284985695,29.0003051,144.4,144.35,7.06946157]
[1741284986290,29.0003051,144.41,144.35,255.96976667]
[1741284986503,6.4649,144.44,144.38,0.14216157]
[1741284986705,29.0003051,144.43,144.38,0.14216157]
[1741284986918,29.0003051,144.44,144.38,29.14246667]
[1741284987217,29.0003051,144.44,144.38,249.04246667]
[1741284987421,29.0003051,144.45,144.4,0.14216157]
[1741284987585,0.03,144.44,144.4,0.14216157]
[1741284987786,0.03,144.44,144.42,0.14216157]
[1741284987989,0.03,144.44,144.42,82.24216157]
[1741284988189,0.03,144.44,144.42,249.04246667]
[1741284988696,0.03,144.44,144.43,29.14246667]
[1741284989017,0.03,144.44,144.43,257.8603034]
[1741284989205,0.03,144.44,144.43,276.69313867]
[1741284990000,0.03,144.44,144.43,283.61683867]
[1741284990317,0.03,144.44,144.43,257.75916667]
[1741284990819,0.03,144.44,144.43,256.12246667]
[1741284991618,0.03,144.44,144.43,401.32216157]
[1741284992006,0.03,144.44,144.43,89.32216157]
[1741284992391,0.03,144.44,144.41,82.1]
[1741284992597,29.0003051,144.43,144.41,82.1]
[1741284992804,29.0003051,144.42,144.37,82.1]
[1741284993002,29.0003051,144.41,144.37,82.1]
[1741284993203,29.0003051,144.41,144.38,0.14216157]
[1741284993608,29.0003051,144.4,144.37,82.1]
[1741284993812,29.0003051,144.39,144.37,82.1]
[1741284994007,29.0003051,144.39,144.35,0.033]
[1741284994206,29.0003051,144.4,144.35,0.033]
[1741284994414,29.0003051,144.4,144.36,0.14216157]
[1741284994719,35.9245051,144.42,144.35,248.9333051]
[1741284994919,35.9245051,144.42,144.36,29.14246667]
[1741284995223,35.9241051,144.43,144.38,0.14216157]
[1741284995417,29.0003051,144.42,144.38,82.24216157]
[1741284995824,35.9241051,144.43,144.38,82.24216157]
[1741284997518,29.0003051,144.42,144.38,82.24216157]
[1741284998022,29.0003051,144.41,144.38,82.24216157]
[1741284999423,35.9245051,144.42,144.38,82.24216157]
[1741285000426,35.9245051,144.42,144.38,82.27516157]
[1741285001197,29.0003051,144.39,144.38,82.27516157]
[1741285001400,29.0003051,144.39,144.38,0.17516157]
[1741285002422,35.9259051,144.39,144.38,0.17516157]
[1741285002905,29.0003051,144.39,144.38,0.17516157]
[1741285003104,35.9259051,144.39,144.38,0.033]
[1741285003523,29.0003051,144.4,144.38,0.033]
[1741285003848,29.0003051,144.39,144.38,0.033]
[1741285004416,35.9259051,144.39,144.38,0.033]
[1741285006044,35.9255051,144.4,144.38,0.033]
[1741285006823,29.0003051,144.39,144.38,0.033]
[1741285008156,35.9255051,144.4,144.38,0.033]
[1741285008337,29.0003051,144.4,144.38,0.033]
[1741285009951,18.64964886,144.43,144.38,0.033]
[1741285010256,29.0003051,144.42,144.38,0.033]
[1741285010437,29.0003051,144.41,144.38,0.033]
[1741285011643,29.0003051,144.39,144.38,0.033]
[1741285012223,29.0003051,144.4,144.38,0.033]
[1741285012450,35.9250051,144.41,144.38,0.033]
[1741285013269,29.0003051,144.39,144.38,0.033]
[1741285014441,6.9243,144.42,144.38,0.033]
[1741285014752,35.9246051,144.42,144.38,0.033]
[1741285014932,29.0003051,144.4,144.38,0.033]
[1741285015138,6.9243,144.42,144.38,0.033]
[1741285015139,29.0003051,144.39,144.38,0.033]
[1741285015857,53.74435396,144.39,144.38,0.033]
[1741285016355,35.0947051,144.39,144.38,0.033]
[1741285016528,42.0203051,144.39,144.38,0.033]
[1741285017035,82.0,144.41,144.38,0.033]
[1741285017754,29.0003051,144.4,144.38,0.033]
[1741285017947,29.0003051,144.39,144.38,0.033]
[1741285018454,35.9259051,144.39,144.38,0.033]
[1741285018652,54.57555396,144.39,144.38,0.033]
[1741285020558,43.76580184,144.39,144.38,0.033]
[1741285022150,49.33240599,144.39,144.38,0.033]
[1741285022359,18.19055298,144.39,144.38,0.033]
[1741285022557,25.11615298,144.39,144.38,0.033]
[1741285022857,6.2674,144.42,144.38,0.033]
[1741285023059,18.19055298,144.41,144.38,0.033]
[1741285023242,18.19055298,144.39,144.38,0.033]
[1741285024451,18.19055298,144.4,144.38,0.033]
[1741285024649,25.11575298,144.4,144.38,0.033]
[1741285024846,6.9242,144.42,144.38,0.033]
[1741285025050,25.11475298,144.42,144.38,0.033]
[1741285025443,18.19055298,144.41,144.38,0.033]
[1741285025644,18.19055298,144.41,144.39,0.14216157]
[1741285025845,18.19055298,144.4,144.39,0.14216157]
[1741285026247,18.19055298,144.4,144.38,312.033]
[1741285026466,18.19055298,144.39,144.38,0.033]
[1741285027278,24.2348,144.42,144.38,0.033]
[1741285027449,18.19055298,144.41,144.38,0.033]
[1741285027657,25.11475298,144.42,144.38,0.033]
[1741285028263,18.19055298,144.4,144.38,0.033]
[1741285029242,18.19055298,144.39,144.38,0.033]
[1741285029644,25.11575298,144.4,144.38,0.033]
[1741285029845,6.9252,144.4,144.38,0.033]
[1741285030562,25.11575298,144.4,144.38,0.033]
[1741285032171,18.19055298,144.39,144.38,0.033]
[1741285033275,36.84020184,144.39,144.38,0.033]
[1741285033586,43.76580184,144.39,144.38,0.033]
[1741285035486,67.39262498,144.39,144.35,0.033]
[1741285035667,18.19055298,144.36,144.35,0.033]
[1741285036147,19.21368255,144.36,144.35,0.033]
[1741285037051,18.19055298,144.36,144.35,0.033]
[1741285037361,36.84020184,144.36,144.35,0.033]
[1741285037565,43.76730184,144.36,144.35,0.033]
[1741285037867,100.933972,144.35,144.31,0.033]
[1741285038073,36.84020184,144.32,144.31,0.033]
[1741285038870,43.31386341,144.32,144.31,0.033]
[1741285039074,45.12132498,144.32,144.31,0.033]
[1741285039478,18.933972,144.31,144.3,0.033]
[1741285039779,18.933972,144.31,144.26,82.133]
[1741285039780,55.03075482,144.27,144.26,0.033]
[1741285039973,56.05388439,144.27,144.26,0.033]
[1741285040758,56.05388439,144.27,144.23,0.033]
[1741285040960,18.19055298,144.24,144.23,0.033]
[1741285041167,43.77300184,144.24,144.23,0.033]
[1741285041372,20.0,144.24,144.23,0.033]
[1741285041555,38.19055298,144.24,144.23,0.033]
[1741285042574,18.19055298,144.25,144.23,0.033]
[1741285042875,18.19055298,144.26,144.23,0.17516157]
[1741285043075,18.19055298,144.26,144.23,82.27516157]
[1741285043257,18.19055298,144.25,144.23,82.27516157]
[1741285043574,18.19055298,144.25,144.23,0.17516157]
[1741285043783,18.19055298,144.24,144.23,0.033]
[1741285044382,18.19055298,144.25,144.23,0.033]
[1741285044552,18.19055298,144.26,144.23,6.9663]
[1741285044986,18.64964886,144.28,144.24,0.14216157]
[1741285045279,82.0,144.3,144.24,0.14216157]
[1741285045280,18.19055298,144.27,144.24,7.07476157]
[1741285045576,18.19055298,144.27,144.24,7.07496157]
[1741285045779,18.19055298,144.27,144.23,6.9662]
[1741285046174,18.19055298,144.29,144.24,0.14216157]
[1741285046360,18.19055298,144.3,144.24,18.33271455]
[1741285046558,18.19055298,144.3,144.24,0.14216157]
[1741285046559,18.19055298,144.29,144.24,0.14216157]
[1741285046862,6.9296,144.31,144.24,0.14216157]
[1741285047058,18.19055298,144.3,144.24,100.43271455]
[1741285047259,18.19055298,144.3,144.24,82.24216157]
[1741285047585,18.19055298,144.3,144.25,6.9324]
[1741285048360,18.19055298,144.3,144.25,318.9324]
[1741285049968,25.12055298,144.3,144.25,312.0]
[1741285050176,18.19055298,144.28,144.25,312.0]
[1741285050378,18.19055298,144.28,144.25,394.1]
[1741285050577,18.19055298,144.29,144.25,394.1]
[1741285050785,18.19055298,144.29,144.25,401.0322]
[1741285051577,82.0,144.33,144.26,0.14216157]
[1741285051770,18.19055298,144.31,144.26,82.24216157]
[1741285051965,18.19055298,144.32,144.26,100.43271455]
[1741285052167,18.19055298,144.34,144.28,18.19055298]
[1741285052386,18.19055298,144.34,144.29,0.14216157]
[1741285052680,18.19055298,144.33,144.29,0.14216157]
[1741285052886,18.19055298,144.33,144.29,82.24216157]
[1741285053087,6.929,144.32,144.29,82.24216157]
[1741285053282,18.19055298,144.33,144.29,82.24216157]
[1741285053577,18.19055298,144.34,144.29,82.24216157]
[1741285053980,18.19055298,144.33,144.29,82.24216157]
[1741285054185,18.19055298,144.34,144.29,89.17236157]
[1741285054386,25.11825298,144.35,144.29,107.36291455]
[1741285054582,18.19055298,144.35,144.29,557.16291455]
[1741285054888,18.19055298,144.35,144.31,0.14216157]
[1741285055390,25.11855298,144.35,144.3,0.14216157]
[1741285055577,18.19055298,144.34,144.3,0.14216157]
[1741285055773,18.19055298,144.32,144.3,0.14216157]
[1741285056174,18.19055298,144.31,144.26,226.96]
[1741285056396,18.19055298,144.31,144.27,0.14216157]
[1741285056597,18.19055298,144.3,144.27,0.14216157]
[1741285057169,6.9304,144.29,144.26,89.16]
[1741285057476,25.12095298,144.29,144.27,0.14216157]
[1741285057681,25.12075298,144.3,144.27,0.14216157]
[1741285058189,18.19055298,144.29,144.27,0.14216157]
[1741285058388,18.19055298,144.28,144.27,0.14216157]
[1741285058575,18.19055298,144.28,144.24,82.1]
[1741285058777,18.19055298,144.27,144.25,0.14216157]
[1741285058981,24.2552,144.3,144.25,0.17516157]
[1741285059178,18.19055298,144.28,144.25,0.17516157]
[1741285059395,25.12195298,144.28,144.25,0.17516157]
[1741285059607,25.12115298,144.29,144.25,0.17516157]
[1741285059883,0.03,144.3,144.25,7.10736157]
[1741285060083,0.03,144.3,144.25,245.19791455]
[1741285060288,0.03,144.3,144.27,0.14216157]
[1741285060495,0.03,144.3,144.27,82.24216157]
[1741285061274,0.03,144.3,144.27,394.24216157]
[1741285061589,0.03,144.3,144.27,401.17356157]
[1741285061980,0.03,144.3,144.27,401.17346157]
[1741285062187,0.03,144.3,144.27,419.36401455]
[1741285062786,0.03,144.3,144.27,107.36401455]
[1741285062986,0.03,144.3,144.29,18.19055298]
[1741285063171,0.03,144.3,144.29,18.33271455]
[1741285063371,0.03,144.3,144.29,25.26311455]
[1741285064294,0.03,144.39,144.3,1.64716157]
[1741285064477,18.22055298,144.39,144.34,0.14216157]
[1741285064680,0.03,144.39,144.34,100.43271455]
[1741285065071,0.03,144.39,144.36,18.33271455]
[1741285065385,0.03,144.39,144.36,25.25971455]
[1741285065692,0.03,144.39,144.36,330.33271455]
[1741285065869,0.03,144.39,144.36,312.14216157]
[1741285066282,18.22055298,144.39,144.36,312.14216157]
[1741285066589,29.12366733,144.39,144.36,312.14216157]
[1741285067378,6.9261,144.38,144.36,0.14216157]
[1741285067576,36.01976733,144.38,144.36,0.14216157]
[1741285068192,6.9261,144.38,144.36,0.14216157]
[1741285068386,36.04936733,144.39,144.35,0.14216157]
[1741285068596,0.03,144.39,144.35,0.14216157]
[1741285069193,0.03,144.39,144.35,29.2358289]
[1741285069705,0.03,144.39,144.35,111.1358289]
[1741285069922,0.03,144.39,144.35,118.1958289]
[1741285070421,0.03,144.39,144.35,430.1958289]
[1741285070584,0.03,144.39,144.35,401.10216157]
[1741285071780,0.03,144.39,144.37,0.14216157]
[1741285072018,0.03,144.39,144.37,82.04216157]
[1741285073414,29.12366733,144.39,144.37,81.9]
[1741285073917,36.04946733,144.39,144.37,81.9]
[1741285074517,0.03,144.39,144.37,81.9]
[1741285074818,0.03,144.39,144.38,0.14216157]
[1741285075692,6.9556,144.39,144.38,0.14216157]
[1741285076127,0.03,144.39,144.38,0.14216157]
[1741285078033,0.03,144.39,144.38,7.06826157]
[1741285078234,0.03,144.39,144.38,118.0619289]
[1741285078541,0.03,144.39,144.38,567.8619289]
[1741285079151,0.03,144.39,144.38,538.76826157]
[1741285079356,0.03,144.39,144.38,394.04216157]
[1741285079656,0.03,144.39,144.38,81.9]
[1741285079810,0.03,144.39,144.38,82.04216157]
[1741285080614,29.12366733,144.39,144.38,81.9]
[1741285080928,29.12366733,144.39,144.36,0.14216157]
[1741285081128,29.09366733,144.38,144.36,0.14216157]
[1741285081438,0.03,144.39,144.32,219.7]
[1741285081439,29.09366733,144.37,144.32,219.7]
[1741285081646,29.09366733,144.36,144.32,81.9]
[1741285081826,29.09366733,144.36,144.33,0.14216157]
[1741285082156,29.09366733,144.36,144.3,0.033]
[1741285082157,82.0,144.35,144.3,0.033]
[1741285082443,36.02316733,144.31,144.3,0.033]
[1741285082812,29.09366733,144.31,144.3,0.033]
[1741285083017,29.09366733,144.33,144.3,0.033]
[1741285083218,6.927,144.37,144.31,29.2358289]
[1741285083443,36.02066733,144.37,144.31,248.9358289]
[1741285083647,36.02066733,144.37,144.31,219.84216157]
[1741285083648,29.09366733,144.33,144.31,219.84216157]
[1741285083851,19.67277843,144.36,144.3,0.033]
[1741285084040,29.09366733,144.31,144.3,0.033]
[1741285085530,36.02316733,144.31,144.3,0.033]
[1741285086049,29.09366733,144.31,144.3,0.033]
[1741285086230,36.02286733,144.32,144.3,0.033]
[1741285086428,29.09366733,144.32,144.3,0.033]
[1741285086823,29.09366733,144.31,144.3,0.033]
[1741285087918,47.74331619,144.31,144.3,0.033]
[1741285088514,43.79231907,144.31,144.3,0.033]
[1741285089830,100.933972,144.3,144.25,0.033]
[1741285090035,18.21317021,144.26,144.25,0.033]
[1741285090828,43.79471907,144.26,144.25,0.033]
[1741285091265,25.14507021,144.26,144.25,0.033]
[1741285091459,18.21317021,144.26,144.25,0.033]
[1741285092371,18.21317021,144.27,144.25,0.033]
[1741285092555,18.21317021,144.28,144.25,312.033]
[1741285092863,18.21317021,144.28,144.25,393.933]
[1741285093252,18.21317021,144.29,144.25,400.8653]
[1741285093450,18.21317021,144.26,144.25,81.933]
[1741285093665,18.21317021,144.26,144.25,0.033]
[1741285093873,36.86281907,144.26,144.25,0.033]
[1741285096778,100.21317021,144.24,144.23,0.033]
[1741285097073,3.45528454,144.28,144.23,0.033]
[1741285097074,15.1897,144.29,144.23,82.07516157]
[1741285097278,8.2591,144.29,144.23,82.07516157]
[1741285097443,18.21317021,144.27,144.23,82.07516157]
[1741285097648,18.21317021,144.26,144.23,82.07516157]
[1741285097946,6.6354,144.29,144.23,82.07516157]
[1741285098164,18.21317021,144.28,144.23,82.07516157]
[1741285098349,18.21317021,144.29,144.23,100.28833178]
[1741285098551,18.21317021,144.29,144.25,0.14216157]